[Event "ONJK 2024 ABC"]
[Site "Velp, Netherlands"]
[Date "2024.08.05"]
[Round "4.8"]
[White "Kool, Jesper"]
[Black "Henckens, Elof"]
[Result "1-0"]
[TimeControl "90 minutes + 30 seconds"]
[WhiteElo "1823"]
[BlackElo "1707"]

1. e4 {[%emt 00:00:17]} e5 {[%clk 01:30:47]} {[%emt 00:00:07]} 2. Nf3 {[%clk
01:31:08]} {[%emt 00:00:11]} Nf6 {[%clk 01:30:47]} {[%emt 00:00:30]} 3. Nc3
{[%clk 01:31:33]} {[%emt 00:00:05]} Bb4 {[%clk 01:31:11]} {[%emt 00:00:06]} 4.
Bc4 {[%clk 01:31:29]} {[%emt 00:00:35]} O-O {[%clk 01:24:56]} {[%emt 00:06:45]}
5. d3 {[%clk 01:30:57]} {[%emt 00:01:02]} d6 {[%clk 01:23:35]} {[%emt
00:01:50]} 6. O-O {[%clk 01:30:27]} {[%emt 00:01:00]} h6 {[%clk 01:19:42]}
{[%emt 00:04:23]} 7. Re1 {[%clk 01:27:24]} {[%emt 00:03:33]} Bg4 {[%clk
01:19:36]} {[%emt 00:00:36]} 8. Be3 {[%clk 01:24:56]} {[%emt 00:02:59]} c6
{[%clk 01:17:28]} {[%emt 00:02:38]} 9. a3 {[%clk 01:22:43]} {[%emt 00:02:43]}
Ba5 {[%clk 01:14:16]} {[%emt 00:03:41]} 10. b4 {[%clk 01:20:34]} {[%emt
00:02:40]} Bc7 {[%clk 01:10:40]} {[%emt 00:04:06]} 11. d4 {[%clk 01:15:11]}
{[%emt 00:05:54]} d5 {[%clk 01:07:49]} {[%emt 00:03:19]} 12. Be2 {[%clk
01:11:17]} {[%emt 00:04:25]} Nxe4 {[%clk 00:52:05]} {[%emt 00:16:15]} 13. Nxe4
{[%clk 01:11:23]} {[%emt 00:00:23]} dxe4 {[%clk 00:42:19]} {[%emt 00:10:15]} 14.
Nxe5 {[%clk 01:11:31]} {[%emt 00:00:23]} Bxe2 {[%clk 00:42:35]} {[%emt
00:00:14]} 15. Qxe2 {[%clk 01:11:42]} {[%emt 00:00:19]} Re8 {[%clk 00:41:59]}
{[%emt 00:01:06]} 16. Qg4 {[%clk 01:02:47]} {[%emt 00:09:25]} Qf6 {[%clk
00:38:04]} {[%emt 00:04:24]} 17. Bf4 {[%clk 01:01:33]} {[%emt 00:01:46]} Nd7
{[%clk 00:34:34]} {[%emt 00:04:00]} 18. Qxd7 {[%clk 00:59:54]} {[%emt
00:02:09]} Bb6 {[%clk 00:33:17]} {[%emt 00:01:47]} 19. Be3 {[%emt 00:03:56]}
Rad8 {[%clk 00:33:09]} 20. Qxb7 {[%clk 00:56:32]} {[%emt 00:01:04]} Bxd4 {[%clk
00:31:30]} {[%emt 00:02:08]} 21. Bxd4 {[%clk 00:56:20]} {[%emt 00:00:42]} Rxd4
{[%clk 00:31:38]} {[%emt 00:00:22]} 22. Ng4 {[%clk 00:56:22]} {[%emt 00:00:29]}
Qf4 {[%clk 00:31:23]} {[%emt 00:00:43]} 23. Ne3 {[%clk 00:56:08]} {[%emt
00:00:46]} Rd2 {[%clk 00:29:50]} {[%emt 00:02:01]} 24. Rf1 {[%clk 00:56:01]}
{[%emt 00:00:38]} Re6 {[%clk 00:29:38]} {[%emt 00:00:42]} 25. Rad1 {[%clk
00:56:08]} {[%emt 00:00:23]} Rxd1 {[%clk 00:28:40]} {[%emt 00:01:28]} 26. Rxd1
{[%clk 00:56:24]} {[%emt 00:00:15]} Rf6 {[%clk 00:28:57]} {[%emt 00:00:12]} 27.
Rf1 {[%clk 00:56:23]} {[%emt 00:00:31]} Rg6 {[%clk 00:29:05]} {[%emt 00:00:23]}
28. Qc8+ {[%clk 00:56:25]} {[%emt 00:00:22]} Kh7 {[%clk 00:29:09]} {[%emt
00:00:31]} 29. Qf5 {[%clk 00:56:28]} {[%emt 00:00:23]} 1-0

[Event "ONJK 2024 ABC"]
[Site "Velp, Netherlands"]
[Date "2024.08.05"]
[Round "4.9"]
[White "De Rycke, Killian"]
[Black "Zootjes, Aaron"]
[Result "1-0"]
[TimeControl "90 minutes + 30 seconds"]
[WhiteElo "1751"]
[BlackElo "1639"]

1. e4 {[%emt 00:00:17]} c5 {[%clk 01:30:51]} 2. Nf3 {[%clk 01:31:07]} {[%emt
00:00:15]} d6 {[%clk 01:31:08]} {[%emt 00:00:13]} 3. d4 {[%clk 01:31:25]}
{[%emt 00:00:13]} cxd4 {[%clk 01:31:23]} {[%emt 00:00:14]} 4. Nxd4 {[%clk
01:31:46]} {[%emt 00:00:09]} Nf6 {[%clk 01:31:39]} {[%emt 00:00:14]} 5. Nc3
{[%clk 01:32:09]} {[%emt 00:00:07]} a6 {[%clk 01:31:47]} {[%emt 00:00:22]} 6.
Be3 {[%clk 01:32:21]} {[%emt 00:00:18]} e5 {[%clk 01:31:51]} {[%emt 00:00:26]}
7. Nb3 {[%clk 01:32:41]} {[%emt 00:00:11]} Nc6 {[%clk 01:31:40]} {[%emt
00:00:41]} 8. Qd2 {[%clk 01:32:06]} {[%emt 00:01:05]} Be7 {[%clk 01:30:30]}
{[%emt 00:01:40]} 9. O-O-O {[%clk 01:30:56]} {[%emt 00:01:41]} b5 {[%clk
01:28:15]} {[%emt 00:02:44]} 10. Bd3 {[%emt 00:02:47]} Bb7 {[%clk 01:27:34]}
{[%emt 00:01:09]} 11. f4 {[%clk 01:20:55]} {[%emt 00:08:16]} Ng4 {[%clk
01:19:46]} {[%emt 00:08:18]} 12. g3 {[%clk 01:19:40]} {[%emt 00:01:45]} Rc8
{[%clk 01:00:03]} {[%emt 00:20:13]} 13. h3 {[%clk 01:04:50]} {[%emt 00:15:20]}
Nxe3 {[%clk 00:58:45]} {[%emt 00:01:48]} 14. Qxe3 {[%clk 01:04:58]} {[%emt
00:00:22]} exf4 {[%clk 00:58:38]} {[%emt 00:00:37]} 15. gxf4 {[%clk 01:04:18]}
{[%emt 00:01:10]} Nb4 {[%clk 00:52:18]} {[%emt 00:06:51]} 16. a3 {[%clk
01:00:08]} {[%emt 00:04:40]} Nxd3+ {[%clk 00:51:47]} {[%emt 00:01:01]} 17. Rxd3
{[%clk 00:57:59]} {[%emt 00:02:38]} O-O {[%clk 00:42:46]} {[%emt 00:09:31]} 18.
Rg1 {[%clk 00:55:36]} {[%emt 00:02:53]} Qc7 {[%clk 00:29:54]} {[%emt 00:13:22]}
19. Nd4 {[%clk 00:19:38]} {[%emt 00:36:29]} Bf6 {[%clk 00:15:59]} {[%emt
00:14:24]} 20. Nf5 {[%clk 00:18:13]} {[%emt 00:01:55]} a5 {[%clk 00:07:58]}
{[%emt 00:08:32]} 21. Nxd6 {[%clk 00:14:58]} {[%emt 00:03:45]} b4 {[%clk
00:06:08]} {[%emt 00:02:20]} 22. Nxc8 {[%clk 00:13:18]} {[%emt 00:02:11]} Rxc8
{[%clk 00:06:36]} 23. e5 {[%clk 00:12:57]} {[%emt 00:00:50]} Bh4 {[%clk
00:04:30]} {[%emt 00:02:37]} 24. f5 {[%clk 00:12:09]} {[%emt 00:01:18]} bxc3
{[%clk 00:04:15]} {[%emt 00:00:45]} 25. Rxc3 {[%clk 00:12:20]} {[%emt
00:00:18]} Qd8 {[%clk 00:01:16]} {[%emt 00:03:30]} 26. Qh6 {[%clk 00:10:50]}
{[%emt 00:01:59]} g6 {[%clk 00:01:07]} {[%emt 00:00:40]} 27. f6 {[%clk
00:10:29]} {[%emt 00:00:50]} Bxf6 {[%clk 00:01:32]} {[%emt 00:00:05]} 28. exf6
{[%clk 00:10:44]} {[%emt 00:00:16]} Qxf6 {[%clk 00:02:00]} {[%emt 00:00:02]} 29.
Rxc8+ {[%clk 00:10:25]} {[%emt 00:00:48]} Bxc8 {[%clk 00:02:28]} {[%emt
00:00:02]} 30. Re1 {[%clk 00:10:04]} {[%emt 00:00:52]} Qc6 {[%clk 00:01:31]}
{[%emt 00:01:27]} 31. Rd1 {[%clk 00:08:24]} {[%emt 00:02:10]} Qc7 {[%clk
00:01:38]} {[%emt 00:00:23]} 32. h4 {[%clk 00:07:02]} {[%emt 00:01:52]} Bf5
{[%clk 00:01:05]} {[%emt 00:01:02]} 33. c3 {[%clk 00:06:13]} {[%emt 00:01:20]}
Qe7 {[%clk 00:00:39]} {[%emt 00:00:56]} 34. Qg5 {[%clk 00:05:42]} {[%emt
00:01:01]} f6 {[%clk 00:00:54]} {[%emt 00:00:15]} 35. Qd2 {[%clk 00:04:53]}
{[%emt 00:01:18]} Kg7 {[%clk 00:01:11]} {[%emt 00:00:14]} 36. Re1 {[%clk
00:04:58]} {[%emt 00:00:24]} Qb7 {[%clk 00:01:18]} {[%emt 00:00:23]} 37. b4
{[%clk 00:04:39]} {[%emt 00:00:51]} axb4 {[%clk 00:01:39]} {[%emt 00:00:08]} 38.
axb4 {[%clk 00:05:03]} {[%emt 00:00:06]} Qa7 {[%clk 00:01:55]} {[%emt
00:00:14]} 39. Kb2 {[%clk 00:05:15]} {[%emt 00:00:18]} Kf7 {[%clk 00:01:30]}
{[%emt 00:00:55]} 40. Qd5+ {[%clk 00:05:13]} {[%emt 00:00:31]} Kg7 {[%clk
00:01:51]} {[%emt 00:00:10]} 41. Qd2 {[%clk 00:04:42]} {[%emt 00:01:00]} Kf7
{[%clk 00:02:13]} {[%emt 00:00:08]} 42. Qe2 {[%clk 00:04:48]} {[%emt 00:00:24]}
Qd7 {[%clk 00:01:54]} {[%emt 00:00:49]} 43. b5 {[%clk 00:04:02]} {[%emt
00:01:17]} Bd3 {[%clk 00:02:03]} {[%emt 00:00:21]} 44. Qd1 {[%clk 00:03:26]}
{[%emt 00:01:05]} Qd5 {[%clk 00:00:00]} {[%emt 00:02:15]} 1-0

[Event "ONJK 2024 ABC"]
[Site "Velp, Netherlands"]
[Date "2024.08.05"]
[Round "4.10"]
[White "Sapulette, Jay-Giani"]
[Black "Janssen, Thijn"]
[Result "1-0"]
[TimeControl "90 minutes + 30 seconds"]
[WhiteElo "1746"]
[BlackElo "1465"]

1. e4 {[%clk 01:30:57]} {[%emt 00:00:01]} e5 {[%clk 01:30:59]} {[%emt
00:00:01]} 2. Nf3 {[%clk 01:31:23]} {[%emt 00:00:05]} Nc6 {[%clk 01:31:23]}
{[%emt 00:00:06]} 3. d4 {[%clk 01:31:50]} {[%emt 00:00:02]} exd4 {[%clk
01:31:42]} {[%emt 00:00:12]} 4. Bc4 {[%clk 01:32:17]} {[%emt 00:00:03]} Nf6
{[%clk 01:31:01]} {[%emt 00:01:11]} 5. e5 {[%clk 01:32:40]} {[%emt 00:00:07]}
Ng4 {[%clk 01:31:13]} {[%emt 00:00:18]} 6. Bxf7+ {[%clk 01:22:59]} {[%emt
00:10:11]} Kxf7 {[%clk 01:23:22]} {[%emt 00:08:21]} 7. Ng5+ {[%clk 01:23:19]}
{[%emt 00:00:10]} Kg8 {[%clk 01:22:29]} {[%emt 00:01:20]} 8. Qxg4 {[%clk
01:23:12]} {[%emt 00:00:40]} Nxe5 {[%clk 01:20:23]} {[%emt 00:02:36]} 9. Qxd4
{[%clk 01:22:38]} {[%emt 00:01:04]} Qe8 {[%clk 01:20:00]} {[%emt 00:00:54]} 10.
O-O {[%clk 01:22:02]} {[%emt 00:01:04]} h6 {[%clk 01:19:41]} {[%emt 00:00:50]}
11. Re1 {[%clk 01:20:31]} {[%emt 00:02:01]} hxg5 {[%clk 01:17:29]} {[%emt
00:02:42]} 12. Rxe5 {[%clk 01:20:34]} {[%emt 00:00:27]} Qh5 {[%clk 01:13:50]}
{[%emt 00:04:09]} 13. Qd5+ {[%emt 00:01:08]} Kh7 {[%clk 01:13:30]} 14. Rxg5
{[%clk 01:20:59]} {[%emt 00:00:16]} g6 {[%clk 01:11:58]} {[%emt 00:02:03]} 15.
Rxh5+ {[%clk 01:21:05]} {[%emt 00:00:24]} 1-0

[Event "ONJK 2024 ABC"]
[Site "Velp, Netherlands"]
[Date "2024.08.05"]
[Round "4.11"]
[White "Zhezheria, Maksym"]
[Black "Hagen, Carlijn"]
[Result "0-1"]
[TimeControl "90 minutes + 30 seconds"]
[WhiteElo "1626"]
[BlackElo "1645"]

1. d4 {[%clk 01:30:57]} {[%emt 00:00:03]} d5 {[%clk 01:30:53]} {[%emt
00:00:08]} 2. c4 {[%clk 01:31:22]} {[%emt 00:00:05]} dxc4 {[%clk 01:31:18]}
{[%emt 00:00:04]} 3. a4 {[%clk 01:31:47]} {[%emt 00:00:05]} e5 {[%clk
01:29:47]} {[%emt 00:02:02]} 4. e3 {[%clk 01:31:34]} {[%emt 00:00:43]} Be6
{[%clk 01:29:41]} {[%emt 00:00:35]} 5. Nc3 {[%clk 01:31:36]} {[%emt 00:00:29]}
Bb4 {[%clk 01:27:56]} {[%emt 00:02:15]} 6. Nf3 {[%clk 01:30:27]} {[%emt
00:01:39]} Nc6 {[%clk 01:24:16]} {[%emt 00:04:10]} 7. Be2 {[%clk 01:30:48]}
{[%emt 00:00:09]} Nf6 {[%clk 01:19:45]} {[%emt 00:05:00]} 8. Nxe5 {[%clk
01:31:03]} {[%emt 00:00:16]} Nxe5 {[%clk 01:18:06]} {[%emt 00:02:08]} 9. dxe5
{[%clk 01:31:31]} {[%emt 00:00:03]} Nd5 {[%clk 01:16:22]} {[%emt 00:02:14]} 10.
Bd2 {[%clk 01:31:37]} {[%emt 00:00:24]} Bxc3 {[%clk 01:10:29]} {[%emt
00:06:23]} 11. Bxc3 {[%clk 01:31:49]} {[%emt 00:00:18]} Nxc3 {[%clk 01:09:49]}
{[%emt 00:01:10]} 12. bxc3 {[%clk 01:32:11]} {[%emt 00:00:08]} Qg5 {[%clk
01:08:25]} {[%emt 00:01:54]} 13. O-O {[%clk 01:25:52]} {[%emt 00:06:49]} Qxe5
{[%clk 01:08:18]} {[%emt 00:00:37]} 14. Qd4 {[%clk 01:25:37]} {[%emt 00:00:45]}
Qxd4 {[%clk 01:08:04]} {[%emt 00:00:44]} 15. cxd4 {[%clk 01:26:05]} {[%emt
00:00:02]} c6 {[%clk 01:07:53]} {[%emt 00:00:41]} 16. Rab1 {[%clk 01:26:27]}
{[%emt 00:00:08]} Rb8 {[%clk 01:05:10]} {[%emt 00:03:13]} 17. Rb4 {[%clk
01:26:33]} {[%emt 00:00:24]} b5 {[%clk 01:04:07]} {[%emt 00:01:32]} 18. Ra1
{[%clk 01:24:25]} {[%emt 00:02:38]} a5 {[%clk 01:03:49]} {[%emt 00:00:49]} 19.
Rbb1 {[%clk 01:22:03]} {[%emt 00:02:52]} b4 {[%clk 01:03:16]} {[%emt 00:01:03]}
20. Rc1 {[%clk 01:18:57]} {[%emt 00:03:35]} c3 {[%clk 01:02:44]} {[%emt
00:01:02]} 21. Rab1 {[%clk 01:19:04]} {[%emt 00:00:22]} Ba2 {[%clk 01:01:22]}
{[%emt 00:01:54]} 22. Ra1 {[%clk 01:18:44]} {[%emt 00:00:51]} b3 {[%clk
01:01:37]} {[%emt 00:00:14]} 23. Rxa2 {[%clk 01:17:39]} {[%emt 00:01:35]} bxa2
{[%clk 01:01:36]} {[%emt 00:00:31]} 24. Bd3 {[%clk 01:18:06]} {[%emt 00:00:02]}
Rb2 {[%clk 01:01:40]} {[%emt 00:00:27]} 0-1

[Event "ONJK 2024 ABC"]
[Site "Velp, Netherlands"]
[Date "2024.08.05"]
[Round "4.12"]
[White "Frederiks, Jesse"]
[Black "Van de Vooren, Mark"]
[Result "1-0"]
[TimeControl "90 minutes + 30 seconds"]
[WhiteElo "1757"]
[BlackElo "1500"]

1. c4 {[%clk 01:30:58]} {[%emt 00:00:01]} e5 {[%clk 01:30:58]} {[%emt
00:00:02]} 2. Nc3 {[%clk 01:31:20]} {[%emt 00:00:08]} Nf6 {[%clk 01:31:21]}
{[%emt 00:00:09]} 3. d3 {[%clk 01:31:41]} {[%emt 00:00:07]} c6 {[%clk
01:31:44]} {[%emt 00:00:07]} 4. Nf3 {[%clk 01:31:32]} {[%emt 00:00:39]} d6
{[%clk 01:31:25]} {[%emt 00:00:50]} 5. g3 {[%clk 01:30:11]} {[%emt 00:01:51]}
Be6 {[%clk 01:31:35]} {[%emt 00:00:21]} 6. Bg2 {[%clk 01:29:45]} {[%emt
00:00:56]} Be7 {[%clk 01:31:21]} {[%emt 00:00:44]} 7. O-O {[%clk 01:29:23]}
{[%emt 00:00:51]} a5 {[%clk 01:30:58]} {[%emt 00:00:53]} 8. Bd2 {[%clk
01:27:56]} {[%emt 00:01:56]} O-O {[%clk 01:30:38]} {[%emt 00:00:51]} 9. e3
{[%clk 01:26:38]} {[%emt 00:01:49]} h6 {[%clk 01:27:33]} {[%emt 00:03:34]} 10.
b3 {[%clk 01:25:37]} {[%emt 00:01:32]} Nbd7 {[%clk 01:27:10]} {[%emt 00:00:54]}
11. d4 {[%clk 01:24:39]} {[%emt 00:01:27]} e4 {[%clk 01:20:39]} {[%emt
00:07:01]} 12. Ne1 {[%clk 01:24:14]} {[%emt 00:00:48]} d5 {[%clk 01:20:53]}
{[%emt 00:00:23]} 13. cxd5 {[%clk 01:23:18]} {[%emt 00:01:26]} cxd5 {[%clk
01:21:11]} {[%emt 00:00:12]} 14. f3 {[%clk 01:18:53]} {[%emt 00:04:55]} exf3
{[%clk 01:19:11]} {[%emt 00:02:29]} 15. Nxf3 {[%clk 01:17:34]} {[%emt
00:01:49]} Ne4 {[%clk 01:18:52]} {[%emt 00:00:49]} 16. Nxe4 {[%clk 01:14:50]}
{[%emt 00:03:13]} dxe4 {[%clk 01:18:26]} {[%emt 00:00:56]} 17. Ne1 {[%clk
01:15:13]} {[%emt 00:00:09]} Nf6 {[%clk 01:17:02]} {[%emt 00:01:54]} 18. Qb1
{[%clk 01:11:24]} {[%emt 00:04:18]} Bd5 {[%clk 01:11:45]} {[%emt 00:05:48]} 19.
Rxf6 {[%clk 01:04:11]} {[%emt 00:07:43]} Bxf6 {[%clk 01:11:59]} {[%emt
00:00:15]} 20. Bxe4 {[%clk 01:04:32]} {[%emt 00:00:09]} Re8 {[%clk 01:11:22]}
{[%emt 00:01:07]} 21. Bxd5 {[%clk 01:02:47]} {[%emt 00:02:15]} Qxd5 {[%clk
01:11:42]} {[%emt 00:00:10]} 22. Qd3 {[%clk 01:00:38]} {[%emt 00:02:39]} Qe4
{[%clk 01:11:05]} {[%emt 00:01:08]} 23. Qxe4 {[%clk 01:00:18]} {[%emt
00:00:51]} Rxe4 {[%clk 01:11:13]} {[%emt 00:00:21]} 24. Rc1 {[%clk 01:00:25]}
{[%emt 00:00:23]} a4 {[%clk 01:08:21]} {[%emt 00:03:24]} 25. b4 {[%clk
01:00:17]} {[%emt 00:00:38]} b5 {[%clk 01:08:30]} {[%emt 00:00:20]} 26. Rc5
{[%clk 00:59:21]} {[%emt 00:01:26]} Rb8 {[%clk 01:08:21]} {[%emt 00:00:39]} 27.
Kf2 {[%clk 00:55:12]} {[%emt 00:04:39]} Be7 {[%clk 00:56:08]} {[%emt 00:12:43]}
28. Rc7 {[%clk 00:52:27]} {[%emt 00:03:13]} Bf8 {[%clk 00:56:28]} {[%emt
00:00:12]} 29. a3 {[%clk 00:51:43]} {[%emt 00:01:14]} Ree8 {[%clk 00:56:23]}
{[%emt 00:00:35]} 30. Nd3 {[%clk 00:51:32]} {[%emt 00:00:41]} Rec8 {[%clk
00:56:11]} {[%emt 00:00:42]} 31. Rxc8 {[%clk 00:51:32]} {[%emt 00:00:29]} Rxc8
{[%clk 00:56:30]} {[%emt 00:00:11]} 32. Nc5 {[%clk 00:51:54]} {[%emt 00:00:08]}
f5 {[%clk 00:55:51]} {[%emt 00:01:09]} 33. Kf3 {[%clk 00:48:05]} {[%emt
00:04:20]} g5 {[%clk 00:56:11]} {[%emt 00:00:10]} 34. g4 {[%clk 00:47:28]}
{[%emt 00:01:06]} fxg4+ {[%clk 00:50:52]} {[%emt 00:05:48]} 35. Kxg4 {[%clk
00:47:39]} {[%emt 00:00:20]} Bg7 {[%clk 00:51:08]} {[%emt 00:00:14]} 36. Bc3
{[%clk 00:45:16]} {[%emt 00:02:53]} Kf7 {[%clk 00:48:11]} {[%emt 00:03:28]} 37.
e4 {[%clk 00:43:05]} {[%emt 00:02:42]} Kg6 {[%clk 00:44:14]} {[%emt 00:04:27]}
38. Bb2 {[%clk 00:41:37]} {[%emt 00:01:57]} h5+ {[%clk 00:43:00]} {[%emt
00:01:44]} 39. Kg3 {[%clk 00:40:40]} {[%emt 00:01:26]} h4+ {[%clk 00:38:46]}
{[%emt 00:04:44]} 40. Kf3 {[%clk 00:39:14]} {[%emt 00:01:55]} Rf8+ {[%clk
00:35:56]} {[%emt 00:03:22]} 41. Ke2 {[%clk 00:39:01]} {[%emt 00:00:39]} g4
{[%clk 00:34:47]} {[%emt 00:01:43]} 42. e5 {[%clk 00:39:04]} {[%emt 00:00:27]}
g3 {[%clk 00:34:23]} {[%emt 00:00:54]} 43. hxg3 {[%clk 00:39:28]} {[%emt
00:00:05]} hxg3 {[%clk 00:33:49]} {[%emt 00:01:04]} 44. Bc1 {[%clk 00:39:15]}
{[%emt 00:00:44]} g2 {[%clk 00:30:13]} {[%emt 00:04:06]} 45. Be3 {[%clk
00:39:36]} {[%emt 00:00:10]} Rf1 {[%clk 00:30:35]} {[%emt 00:00:08]} 46. Ne6
{[%clk 00:39:06]} {[%emt 00:00:59]} g1=Q {[%clk 00:29:27]} {[%emt 00:01:38]} 47.
Bxg1 {[%clk 00:39:32]} {[%emt 00:00:04]} Rxg1 {[%clk 00:29:45]} {[%emt
00:00:11]} 48. Nc7 {[%clk 00:39:53]} {[%emt 00:00:09]} Ra1 {[%clk 00:29:41]}
{[%emt 00:00:34]} 49. Nxb5 {[%clk 00:40:18]} {[%emt 00:00:06]} Kf5 {[%clk
00:29:43]} {[%emt 00:00:28]} 50. Kd3 {[%clk 00:40:39]} {[%emt 00:00:09]} Bf8
{[%clk 00:23:25]} {[%emt 00:06:48]} 51. Kc4 {[%clk 00:40:39]} {[%emt 00:00:30]}
Ke6 {[%clk 00:22:16]} {[%emt 00:01:38]} 52. Nc7+ {[%clk 00:40:32]} {[%emt
00:00:38]} Kd7 {[%clk 00:22:05]} {[%emt 00:00:41]} 53. Nb5 {[%clk 00:40:53]}
{[%emt 00:00:09]} Kc6 {[%clk 00:20:19]} {[%emt 00:02:17]} 54. d5+ {[%clk
00:40:41]} {[%emt 00:00:42]} Kb6 {[%clk 00:20:14]} {[%emt 00:00:34]} 55. d6
{[%clk 00:40:34]} {[%emt 00:00:36]} Re1 {[%clk 00:19:02]} {[%emt 00:01:43]} 56.
Nc3 {[%clk 00:40:48]} {[%emt 00:00:17]} Rc1 {[%clk 00:18:08]} {[%emt 00:01:23]}
57. Kd4 {[%clk 00:40:39]} {[%emt 00:00:39]} Ra1 {[%clk 00:16:21]} {[%emt
00:02:16]} 58. Nxa4+ {[%clk 00:35:16]} {[%emt 00:05:54]} Kc6 {[%clk 00:16:15]}
{[%emt 00:00:36]} 59. Kc4 {[%clk 00:33:26]} {[%emt 00:02:20]} Rxa3 {[%clk
00:15:49]} {[%emt 00:00:54]} 60. b5+ {[%clk 00:33:46]} {[%emt 00:00:11]} Kd7
{[%clk 00:16:11]} {[%emt 00:00:09]} 61. Nc5+ {[%clk 00:34:14]} {[%emt
00:00:02]} Kd8 {[%clk 00:16:01]} {[%emt 00:00:40]} 62. Kd5 {[%clk 00:34:06]}
{[%emt 00:00:37]} Ra1 {[%clk 00:10:33]} {[%emt 00:05:59]} 63. Kc6 {[%clk
00:30:20]} {[%emt 00:04:16]} Ra8 {[%clk 00:09:59]} {[%emt 00:01:05]} 64. Ne6+
{[%clk 00:30:23]} {[%emt 00:00:27]} Ke8 {[%clk 00:10:10]} {[%emt 00:00:18]} 65.
Nc7+ {[%clk 00:30:52]} Kf7 {[%clk 00:10:36]} {[%emt 00:00:05]} 66. Nxa8 {[%clk
00:31:13]} {[%emt 00:00:09]} 1-0

[Event "ONJK 2024 ABC"]
[Site "Velp, Netherlands"]
[Date "2024.08.05"]
[Round "4.13"]
[White "De Wit, Evan"]
[Black "Roebers, Bregje"]
[Result "0-1"]
[TimeControl "90 minutes + 30 seconds"]
[WhiteElo "1782"]
[BlackElo "1796"]

1. Nf3 {[%clk 01:30:57]} {[%emt 00:00:02]} Nf6 {[%clk 01:30:43]} {[%emt
00:00:18]} 2. g3 {[%clk 01:31:19]} {[%emt 00:00:07]} g6 {[%clk 01:30:47]}
{[%emt 00:00:26]} 3. Bg2 {[%clk 01:31:43]} {[%emt 00:00:06]} Bg7 {[%clk
01:29:54]} {[%emt 00:01:23]} 4. O-O {[%clk 01:32:04]} {[%emt 00:00:09]} d5
{[%clk 01:27:45]} {[%emt 00:02:40]} 5. d4 {[%clk 01:30:55]} {[%emt 00:01:39]}
O-O {[%clk 01:25:26]} {[%emt 00:02:49]} 6. c4 {[%clk 01:31:04]} {[%emt
00:00:21]} e6 {[%clk 01:21:47]} {[%emt 00:04:08]} 7. Nc3 {[%clk 01:30:09]}
{[%emt 00:01:25]} c6 {[%clk 01:07:42]} {[%emt 00:14:35]} 8. b3 {[%clk
01:27:31]} {[%emt 00:03:08]} Nbd7 {[%clk 01:07:07]} {[%emt 00:01:05]} 9. Qc2
{[%clk 01:25:37]} {[%emt 00:02:25]} c5 {[%clk 00:57:35]} {[%emt 00:10:02]} 10.
e3 {[%clk 01:18:13]} {[%emt 00:07:54]} b6 {[%clk 00:52:18]} {[%emt 00:05:47]}
11. Bb2 {[%clk 01:17:47]} {[%emt 00:00:55]} Bb7 {[%clk 00:50:27]} {[%emt
00:02:22]} 12. Rfd1 {[%clk 01:15:25]} {[%emt 00:02:52]} Qc7 {[%clk 00:46:09]}
{[%emt 00:04:48]} 13. cxd5 {[%clk 01:14:37]} {[%emt 00:01:19]} Nxd5 {[%clk
00:44:52]} {[%emt 00:01:47]} 14. Nxd5 {[%clk 01:10:15]} {[%emt 00:04:51]} exd5
{[%clk 00:43:46]} {[%emt 00:01:36]} 15. Rac1 {[%clk 01:09:12]} {[%emt
00:01:32]} Rac8 {[%clk 00:41:21]} {[%emt 00:02:56]} 16. dxc5 {[%clk 01:08:20]}
{[%emt 00:01:22]} bxc5 {[%clk 00:40:05]} {[%emt 00:01:45]} 17. Bxg7 {[%clk
01:07:00]} {[%emt 00:01:51]} Kxg7 {[%clk 00:40:17]} {[%emt 00:00:18]} 18. b4
{[%clk 01:06:58]} {[%emt 00:00:32]} c4 {[%clk 00:39:28]} {[%emt 00:01:19]} 19.
Qc3+ {[%clk 01:06:31]} {[%emt 00:00:57]} Kg8 {[%clk 00:36:14]} {[%emt
00:03:44]} 20. h4 {[%clk 01:02:19]} {[%emt 00:04:43]} Rfe8 {[%clk 00:33:24]}
{[%emt 00:03:20]} 21. h5 {[%clk 00:56:01]} {[%emt 00:06:48]} Ne5 {[%clk
00:31:44]} {[%emt 00:02:10]} 22. Nxe5 {[%clk 00:53:32]} {[%emt 00:02:59]} Qxe5
{[%clk 00:32:00]} {[%emt 00:00:13]} 23. hxg6 {[%clk 00:53:49]} {[%emt
00:00:14]} hxg6 {[%clk 00:32:02]} {[%emt 00:00:28]} 24. Rd4 {[%clk 00:51:33]}
{[%emt 00:02:46]} Rcd8 {[%clk 00:29:15]} {[%emt 00:03:17]} 25. Rcd1 {[%clk
00:49:34]} {[%emt 00:02:28]} Rd6 {[%clk 00:28:03]} {[%emt 00:01:42]} 26. Qd2
{[%clk 00:41:14]} {[%emt 00:08:51]} Red8 {[%clk 00:25:15]} {[%emt 00:03:18]} 27.
e4 {[%clk 00:39:19]} {[%emt 00:02:24]} Rc8 {[%clk 00:20:14]} {[%emt 00:05:31]}
28. f4 {[%clk 00:33:08]} {[%emt 00:06:42]} Qe7 {[%clk 00:18:10]} {[%emt
00:02:34]} 29. e5 {[%clk 00:33:03]} {[%emt 00:00:34]} Rb6 {[%clk 00:17:04]}
{[%emt 00:01:37]} 30. Bxd5 {[%clk 00:32:50]} {[%emt 00:00:44]} c3 {[%clk
00:15:17]} {[%emt 00:02:16]} 31. Qd3 {[%clk 00:24:06]} {[%emt 00:09:14]} Bxd5
{[%clk 00:12:54]} {[%emt 00:02:53]} 32. Rxd5 {[%clk 00:24:29]} {[%emt
00:00:07]} c2 {[%clk 00:12:19]} {[%emt 00:01:05]} 33. Rc1 {[%clk 00:19:47]}
{[%emt 00:05:13]} Qxb4 {[%clk 00:09:40]} {[%emt 00:03:09]} 34. Kg2 {[%clk
00:15:15]} {[%emt 00:05:02]} Rc3 {[%clk 00:07:32]} {[%emt 00:02:38]} 35. Rd8+
{[%clk 00:12:01]} {[%emt 00:03:44]} Kg7 {[%clk 00:07:34]} {[%emt 00:00:27]} 36.
Qd4 {[%clk 00:11:04]} {[%emt 00:01:28]} Qxd4 {[%emt 00:02:33]} 0-1